Cogmind - Beta 11 @@@ ROGUE MODE // 2022.04.01 @ 06:56:35 Player: Catfish Result: Self-destructed Performance ------------- Evolutions (1) 500 Regions Visited (6) 1200 Robots Destroyed (55) 275 Value Destroyed (1534) 1534 Prototype IDs (0) 0 Alien Tech Used (0) 0 Bonus (38) 38 TOTAL SCORE: 3547 Bonus ------- High Alert Combat Kills 38 Cogmind --------- Core Integrity 129/400 Matter 253/300 Energy 125/125 System Corruption 1% Temperature Danger (446) Movement Walking (125) Location -8/Mines Parts ------- > --- POWER (1) -------- Light Ion Engine > --- PROPULSION (4) --- Aluminum Leg Aluminum Leg Carbon-fiber Leg Makeshift Leg > --- UTILITY (2) ------ Medium Storage Unit Hardened Light Armor Plating > --- WEAPON (2) ------- (None) > --- INVENTORY (10) --- Light Ion Engine Light Nuclear Core Flight Unit Flight Unit Flight Unit Flight Unit Flight Unit Small Storage Unit Makeshift Sensor Array Peak State ------------ > --- POWER ------------ Light Ion Engine > --- PROPULSION ------- Aluminum Leg Aluminum Leg Carbon-fiber Leg Makeshift Leg > --- UTILITY ---------- Medium Storage Unit Hardened Light Armor Plating > --- WEAPON ----------- Particle Gun Shotgun > --- INVENTORY -------- Light Ion Engine Light Nuclear Core Flight Unit Flight Unit Flight Unit Flight Unit Flight Unit Small Storage Unit Makeshift Sensor Array Grenade Launcher [Rating: 18] Favorites ----------- Power Light Ion Engine Engine Light Ion Engine Power Core Light Nuclear Core Propulsion Aluminum Leg Leg Aluminum Leg Wheel Wheel Utility Medium Storage Unit Device Sensor Array Storage Medium Storage Unit Protection Hardened Light Armor Plating Weapon Particle Cannon Energy Gun Particle Gun Energy Cannon Particle Cannon Ballistic Gun Shotgun Ballistic Cannon Light Cannon Launcher Grenade Launcher Build | -11 -10 -10 -9 -9 -9 -8 ------- Run | Scr Mat Min Mat Min Exi Min Slots Evolved 2 | . . . 2 . . . Power . | . . . . . . . Propulsion 2 | . . . 2 . . . Utility . | . . . . . . . Weapon . | . . . . . . . Parts Attached 61 | 6 15 10 19 6 1 4 Power 10 | 1 4 3 2 . . . Engine 9 | 1 4 2 2 . . . Core 1 | . . 1 . . . . Reactor . | . . . . . . . Propulsion 24 | 2 4 3 8 5 1 1 Treads . | . . . . . . . Leg 22 | . 4 3 8 5 1 1 Wheel 2 | 2 . . . . . . Hover . | . . . . . . . Flight . | . . . . . . . Utility 10 | 1 3 2 4 . . . Device 2 | . 2 . . . . . Storage 4 | 1 1 1 1 . . . Processor . | . . . . . . . Hackware . | . . . . . . . Protection 4 | . . 1 3 . . . Artifact . | . . . . . . . Weapon 17 | 2 4 2 5 1 . 3 Energy Gun 4 | 1 . . 2 1 . . Energy Cannon 4 | . 2 1 1 . . . Ballistic Gun 5 | 1 1 1 1 . . 1 Ballistic Cannon 1 | . 1 . . . . . Launcher 3 | . . . 1 . . 2 Special Weapon . | . . . . . . . Impact Weapon . | . . . . . . . Slashing Weapon . | . . . . . . . Piercing Weapon . | . . . . . . . Special Melee Weapon . | . . . . . . . Unidentified Prototypes . | . . . . . . . Parts Lost 6 | . . . 3 . . 3 Power 1 | . . . 1 . . . Propulsion 1 | . . . 1 . . . Utility . | . . . . . . . Weapon 4 | . . . 1 . . 3 Highest Loss Streak 3 | . . . 1 . . 3 To Critical Strikes . | . . . . . . . Average Slot Usage (%) 98 | . 99 100 93 100 100 98 Engine 9 | . 14 9 6 11 11 11 Core 2 | . . 4 4 . . . Leg 35 | . 20 28 39 44 44 44 Wheel 1 | . 6 . . . . . Device 3 | . 13 2 . . . . Storage 12 | . 14 14 11 11 11 11 Protection 9 | . . 11 10 11 11 11 Energy Gun 5 | . 5 . 2 6 11 10 Energy Cannon 7 | . 8 14 11 4 . . Ballistic Gun 8 | . 7 5 8 11 11 9 Ballistic Cannon 2 | . 6 8 . . . . Naked Turns . | . . . . . . . Heaviest Build 25 | 13 23 25 25 25 24 24 Greatest Support 55 | 26 26 20 40 40 50 55 Greatest Overweight (x) 4 | 4 1 2 1 . . . Average Overweight (x) . | 1 . . . . . . Largest Inventory Capacity 10 | 8 10 10 10 10 10 10 Average Capacity 9 | 7 9 9 8 10 10 10 Most Carried 10 | 4 10 10 10 10 10 10 Average Carried 9 | 2 9 9 8 9 9 9 Final Capacity 10 | 8 10 8 10 10 10 10 Final Carried 10 | 4 10 8 10 10 10 9 Class Distribution -------------------- 76% | Scavenger-Mutant 23% | Mutant Dominant Class ---------------- Mutant | -10/Materials Scavenger-Mutant | -10/Mines Scavenger-Mutant | -9/Materials Scavenger-Mutant | -9/Mines Scavenger-Mutant | -9/Exiles Scavenger-Mutant | -8/Mines Resources | -11 -10 -10 -9 -9 -9 -8 ----------- Run | Scr Mat Min Mat Min Exi Min Matter Collected 1357 | 252 250 211 439 140 . 65 Remotely . | . . . . . . . Salvage Created 1531 | . 353 199 702 111 . 166 Parts 115 | . 32 13 52 6 . 12 Haulers Intercepted . | . . . . . . . Recyclers Shooed 1 | . . . 1 . . . Parts Field Recycled . | . . . . . . . Retrieved Matter . | . . . . . . . Parts Self-Destructed . | . . . . . . . Prevented . | . . . . . . . Kills | -11 -10 -10 -9 -9 -9 -8 ------- Run | Scr Mat Min Mat Min Exi Min Combat Hostiles Destroyed 50 | . 13 7 23 3 . 4 Guns 16 | . 8 1 4 2 . 1 Cannons 23 | . 5 6 11 1 . . AOE 10 | . . . 7 . . 3 Classes Destroyed 8 | . 3 1 3 . . 1 Tunneler 1 | . . . . . . 1 Recycler 1 | . . . 1 . . . Operator 1 | . . . 1 . . . Watcher 2 | . 1 . 1 . . . Swarmer 17 | . 6 3 8 . . . Grunt 27 | . 7 2 11 3 . 4 Brawler 1 | . . . 1 . . . Sentry 5 | . . 2 3 . . . Best Kill Streak 8 | . 3 3 8 3 . 4 Combat Bots Only 8 | . 3 3 8 3 . 3 Max Kills in Single Turn 3 | . 1 1 3 1 . 2 Gunslinging . | . . . . . . . Exploded 3 | . . . 3 . . 2 Melee . | . . . . . . . Uniques/NPCs Destroyed . | . . . . . . . Combat | -11 -10 -10 -9 -9 -9 -8 -------- Run | Scr Mat Min Mat Min Exi Min Damage Taken 2612 | . 308 417 1266 78 . 543 Core 471 | . 79 121 210 12 . 49 Absorbed by Shields . | . . . . . . . Regen/Repaired (Parts) 171 | . . . 171 . . . Core Remaining (%) 60 | 100 . 20 . . . . Volleys Fired 148 | . 30 19 82 5 . 12 Largest 2 | . 2 2 2 2 . 2 Hottest 108 | . 103 103 108 91 . 95 Shots Fired 263 | . 60 38 136 10 . 19 Gun 113 | . 40 5 51 5 . 12 Cannon 129 | . 20 33 71 5 . . Launcher 21 | . . . 14 . . 7 Special . | . . . . . . . Kinetic 104 | . 30 19 47 5 . 3 Thermal 138 | . 30 19 75 5 . 9 Explosive 21 | . . . 14 . . 7 Electromagnetic . | . . . . . . . Robot Hit Streak 12 | . 9 10 12 6 . 4 Robot Miss Streak 5 | . 3 3 5 2 . 4 Penetration Max . | . . . . . . . Secondary Targets 3 | . 2 . . . . 1 Max Gunslinging Chain 1 | . 1 . . . . 1 Shots Hit Robots 158 | . 35 21 90 7 . 5 Core Hits 85 | . 18 8 35 5 . 19 Critical Kills . | . . . . . . . Critical Parts Destroyed 1 | . . . 1 . . . Critical Strikes 2 | . . 1 1 . . . Destroy 1 | . . . 1 . . . Blast 1 | . . 1 . . . . Melee Attacks . | . . . . . . . Impact . | . . . . . . . Slashing . | . . . . . . . Piercing . | . . . . . . . Sneak Attacks . | . . . . . . . Combat Hostiles . | . . . . . . . Follow-up Attacks . | . . . . . . . Damage Inflicted 3454 | . 471 386 1983 133 . 481 Guns 1138 | . 254 47 653 92 . 92 Cannons 1436 | . 217 339 839 41 . . Explosions 864 | . . . 489 . . 375 Melee . | . . . . . . . Ramming 16 | . . . 2 . . 14 Kinetic 1263 | . 261 223 629 92 . 58 Thermal 1311 | . 210 163 863 41 . 34 Explosive 864 | . . . 489 . . 375 Electromagnetic . | . . . . . . . Impact . | . . . . . . . Slashing . | . . . . . . . Piercing . | . . . . . . . Highest Corruption 3 | . 3 3 1 1 1 1 Average Corruption 1 | . 2 3 1 1 1 1 Corruption Purged . | . . . . . . . Corruption Blocked . | . . . . . . . Effects 35 | . 11 15 3 2 3 1 Message Errors 7 | . 2 3 1 . . 1 Matter Fused 9 | . 4 3 1 1 . . Heat Flow Errors 5 | . 1 3 . . 1 . Energy Discharges 6 | . 1 3 1 1 . . Parts Rejected 1 | . 1 . . . . . Data Loss (minor) 6 | . 2 2 . . 2 . Data Loss (major) 1 | . . 1 . . . . Overload Shots . | . . . . . . . Overflow Damage 1 | . . . 1 . . . Projectiles 1 | . . . 1 . . . Explosions . | . . . . . . . Melee . | . . . . . . . Knockbacks 4 | . 4 . . . . . Impact . | . . . . . . . Kinetic 3 | . 3 . . . . . Secondary 1 | . 1 . . . . . Self-Inflicted Damage 69 | . . . 15 . . 54 Shots 4 | . . . 2 . . 2 Rammed . | . . . . . . . Targets Rammed 3 | . . . 1 . . 2 Kicked 3 | . . . 1 . . 2 Crushed . | . . . . . . . Highest Temperature 554 | . 275 554 366 216 114 437 Average Temperature 136 | . 76 191 127 115 60 192 Received Heat Transfer 1041 | . 120 87 522 42 . 270 Effects 15 | . . 8 5 . . 2 Shutdowns 4 | . . 3 . . . 1 Energy Bleed 5 | . . 1 3 . . 1 Interference 2 | . . . 2 . . . Damage (minor) 2 | . . 2 . . . . Damage (core) 2 | . . 2 . . . . Siege Activations . | . . . . . . . Robots Corrupted . | . . . . . . . Combat Hostiles . | . . . . . . . Parts Fried . | . . . . . . . Impact Corruptions . | . . . . . . . Robots Melted 1 | . . . 1 . . . Combat Hostiles 1 | . . . 1 . . . Parts Melted 2 | . . 1 1 . . . Heat Transferred 2459 | . 448 296 1567 74 . 74 Parts Sabotaged . | . . . . . . . Parts Stolen . | . . . . . . . Parts Stripped . | . . . . . . . Power Chain Reactions . | . . . . . . . Missiles Intercepted . | . . . . . . . Alert | -11 -10 -10 -9 -9 -9 -8 ------- Run | Scr Mat Min Mat Min Exi Min Peak Influence 552 | . 310 222 552 189 . 158 Initial 149 | . . 97 33 149 . . Average 185 | . 168 140 271 175 . 118 Maximum Alert Level 2 | . 1 1 2 . . . Low Security (%) 60 | 100 58 65 31 100 . 100 Level 1 35 | . 41 34 54 . . . Level 2 4 | . . . 13 . . . Level 3 . | . . . . . . . Level 4 . | . . . . . . . Level 5 . | . . . . . . . High Security . | . . . . . . . Max Security . | . . . . . . . Squads Dispatched 6 | . 2 . 3 . . 1 Investigation 3 | . 1 . 2 . . . Extermination . | . . . . . . . Reinforcement 3 | . 1 . 1 . . 1 Assault . | . . . . . . . Garrison . | . . . . . . . Intercept . | . . . . . . . Searches Triggered . | . . . . . . . Construction Impeded 1 | . . . . . . 1 Haulers Reinforced . | . . . . . . . Active Scanning Responses . | . . . . . . . Cargo Convoy Interrupts . | . . . . . . . Stealth | -11 -10 -10 -9 -9 -9 -8 --------- Run | Scr Mat Min Mat Min Exi Min Distress Signals 2 | . 1 . 1 . . . Communications Jammed . | . . . . . . . Distress Signals . | . . . . . . . Times Spotted 72 | . 20 6 35 4 . 7 Peak Tracking Total 7 | . 3 2 7 3 . 3 Tactical Retreats 8 | . 3 . 3 1 . 1 Traps | -11 -10 -10 -9 -9 -9 -8 ------- Run | Scr Mat Min Mat Min Exi Min Traps Triggered 3 | . 3 . . . . . Indirectly . | . . . . . . . Trap Hack Attempts . | . . . . . . . Triggered . | . . . . . . . Disarmed . | . . . . . . . Reprogrammed . | . . . . . . . Reused . | . . . . . . . Traps Extracted . | . . . . . . . Installed . | . . . . . . . Triggered . | . . . . . . . Machines | -11 -10 -10 -9 -9 -9 -8 ---------- Run | Scr Mat Min Mat Min Exi Min Machines Disabled 3 | . 2 1 . . . . Max in Single Turn 1 | . 1 1 . . . . Machines Sabotaged . | . . . . . . . Garrisons Compromised . | . . . . . . . Overloaded Fab Kills . | . . . . . . . Hacking | -11 -10 -10 -9 -9 -9 -8 --------- Run | Scr Mat Min Mat Min Exi Min Machines Accessed 12 | . 1 1 7 . 3 . Terminals 7 | . 1 1 5 . . . Fabricators . | . . . . . . . Repair Stations 1 | . . . 1 . . . Recycling Units . | . . . . . . . Scanalyzers 1 | . . . 1 . . . Garrison Access . | . . . . . . . Total Hacks 59 | . 4 2 27 . 26 . Successful 43 | . . . 17 . 26 . Failed 16 | . 4 2 10 . . . Catastrophic 3 | . . . 3 . . . Database Lockouts . | . . . . . . . Manual 22 | . 4 2 16 . . . Terminals 25 | . 4 2 19 . . . Fabricators . | . . . . . . . Repair Stations 3 | . . . 3 . . . Recycling Units . | . . . . . . . Scanalyzers 5 | . . . 5 . . . Garrison Access . | . . . . . . . Terminal Hacks 33 | . . . 7 . 26 . Record 26 | . . . . . 26 . Part Schematic 1 | . . . 1 . . . Branch Access Points 1 | . . . 1 . . . Terminal Index 1 | . . . 1 . . . Alert Level 1 | . . . 1 . . . Unreport Threat 1 | . . . 1 . . . Recall Reinforcements 1 | . . . 1 . . . Zone Layout 1 | . . . 1 . . . Fabricator Hacks . | . . . . . . . Repair Station Hacks 3 | . . . 3 . . . Scan Component 2 | . . . 2 . . . Repair 1 | . . . 1 . . . Recycling Unit Hacks . | . . . . . . . Scanalyzer 5 | . . . 5 . . . Insert Component 2 | . . . 2 . . . Analyze 3 | . . . 3 . . . Garrison Access Hacks . | . . . . . . . Unauthorized Hacks 2 | . . . 2 . . . Terminals 2 | . . . 2 . . . Botnet 2 | . . . 2 . . . Fabricators . | . . . . . . . Repair Stations . | . . . . . . . Recycling Units . | . . . . . . . Scanalyzers . | . . . . . . . Garrison Access . | . . . . . . . Data Cores Recovered 1 | . . . 1 . . . Used 1 | . . . 1 . . . Hacking Detections 9 | . 1 1 7 . . . Full Trace Events 4 | . 1 . 3 . . . Feedback Events 1 | . . . 1 . . . Corruption 1 | . . . 1 . . . Feedback Blocked . | . . . . . . . Robot Schematics Acquired . | . . . . . . . Robots Built . | . . . . . . . Authchips . | . . . . . . . Time . | . . . . . . . Total Robot Build Rating . | . . . . . . . Part Schematics Acquired 3 | . . . 3 . . . Parts Built . | . . . . . . . Authchips . | . . . . . . . Time . | . . . . . . . Total Part Build Rating . | . . . . . . . Parts Repaired 1 | . . . 1 . . . Time 32 | . . . 32 . . . Parts Recycled . | . . . . . . . Recycled Matter . | . . . . . . . Retrieved Matter . | . . . . . . . Retrieved Components . | . . . . . . . Parts Scanalyzed 2 | . . . 2 . . . Part Schematics Acquired 2 | . . . 2 . . . Parts Damaged . | . . . . . . . Bothacking | -11 -10 -10 -9 -9 -9 -8 ------------ Run | Scr Mat Min Mat Min Exi Min Used RIF Installer . | . . . . . . . Robots Hacked . | . . . . . . . Non-combat . | . . . . . . . Combat . | . . . . . . . Robot Hacks Applied . | . . . . . . . Relay Couplers Released . | . . . . . . . Fabnet Peak Effective % . | . . . . . . . Robots Rewired . | . . . . . . . Allies Hacked . | . . . . . . . Hacks Repelled . | . . . . . . . Allies | -11 -10 -10 -9 -9 -9 -8 -------- Run | Scr Mat Min Mat Min Exi Min Total Allies 3 | . . . . 3 . . Largest Group 3 | . . . . 3 . . Highest-Rated Group 40 | . . . . 40 . . Highest-Rated Ally 16 | . . . . 16 . . Total Orders . | . . . . . . . Ally Attacks 14 | . . . . 14 . . Total Damage 119 | . . . . 119 . . Kills . | . . . . . . . Allies Corrupted . | . . . . . . . Allies Melted . | . . . . . . . Intel | -11 -10 -10 -9 -9 -9 -8 ------- Run | Scr Mat Min Mat Min Exi Min Robot Analysis Total . | . . . . . . . Derelict Logs Recovered 2 | . . 1 . 1 . . Drone Launches . | . . . . . . . Drone Recoveries . | . . . . . . . Exploration | -11 -10 -10 -9 -9 -9 -8 ------------- Run | Scr Mat Min Mat Min Exi Min Turns Passed 3720 | 71 643 766 876 317 867 180 Spaces Moved 2215 | 47 357 362 430 222 701 96 Core 23 | 23 . . . . . . Treads . | . . . . . . . Legs 2069 | . 258 362 430 222 701 96 Wheels 123 | 24 99 . . . . . Hover . | . . . . . . . Flight . | . . . . . . . Fastest Speed 50 | 50 90 120 120 120 120 125 Average Speed 134 | 122 134 184 121 120 122 125 Slowest Speed 260 | 250 190 260 190 120 125 125 Overloaded Moves . | . . . . . . . Propulsion Burnouts . | . . . . . . . Robots Hopped . | . . . . . . . Cave-ins Triggered . | . . . . . . . Exploration Rate (%) 50 | 5 57 80 52 53 92 16 Regions Visited 6 Branch Regions 4 Pre-discovered Areas 1 | . . 1 . . . . Known Exits Taken 1 | . . . 1 . . . Unknown Exits Taken 5 | 1 1 1 . 1 1 . Scrap Searched 3 | . . 2 . 1 . . Spaces Dug . | . . . . . . . Terrain Destroyed 103 | . . . 50 . . 53 Melee . | . . . . . . . Projectile . | . . . . . . . AOE 103 | . . . 50 . . 53 Terrain Rammed . | . . . . . . . Walls Destroyed . | . . . . . . . Machines Disabled . | . . . . . . . Actions | -11 -10 -10 -9 -9 -9 -8 --------- Run | Scr Mat Min Mat Min Exi Min Total 2712 | 57 469 423 655 264 708 136 Wait 206 | 1 36 19 102 26 1 21 Move 2209 | 46 356 361 429 221 700 96 Hop . | . . . . . . . Pick Up 31 | 4 14 3 7 1 2 . Fast Attach 21 | 6 6 3 5 1 . . Attach 4 | . 1 . 1 1 . 1 Detach . | . . . . . . . Swap 36 | . 8 7 13 4 1 3 Drop 53 | . 18 11 15 5 3 1 Fire 148 | . 30 19 82 5 . 12 Melee . | . . . . . . . Ram . | . . . . . . . Kick 3 | . . . 1 . . 2 Crush . | . . . . . . . Escape Stasis . | . . . . . . . Rewire 1 | . . . . . 1 . Trap . | . . . . . . . Miscellaneous . | . . . . . . . Route ------- -11/Scrapyard -10/Materials (discovered 2 exits: *Mat / *Min) -10/Mines (discovered 2 exits: *Mat x2) -9/Materials (discovered 2 exits: [*Mat] / *Min) -9/Mines (discovered 2 exits: [*Mat] / *Exi) -9/Exiles (discovered 2 exits: [*Min x2]) -8/Mines History --------- Turn | Location | Event 21 | -11/Scrapyard | Discovered new exit (range 16) 72 | -11/Scrapyard | Entered Materials 308 | -10/Materials | Build established: Mutant 522 | -10/Materials | Discovered new exit (range 13) 603 | -10/Materials | Discovered new exit (range 16) 715 | -10/Materials | Entered Mines 742 | -10/Mines | Core integrity fell below 50% 963 | -10/Mines | YI-UF0 nonchalantly dropped a Grenade Launcher on the ground 1122 | -10/Mines | Learned Materials stockpile data 1153 | -10/Mines | Build established: Scavenger-Mutant 1348 | -10/Mines | Learned location of Storage (-7) 1459 | -10/Mines | Discovered new exit (range 5) 1464 | -10/Mines | Discovered new exit (range 9) 1481 | -10/Mines | Entered Materials 1481 | -9/Materials | Evolved 2 slots: Propulsion x2 1869 | -9/Materials | Destroyed 8 combat bots 1992 | -9/Materials | Discovered new exit (range 16) 2036 | -9/Materials | Repaired Hrd. Light Armor Plating 2181 | -9/Materials | Identified exit to Mines 2354 | -9/Materials | Core integrity fell below 50% 2357 | -9/Materials | Entered Mines 2361 | -9/Mines | Assisted by bots powering up and referring to "LRC-V3" 2379 | -9/Mines | Met a Derelict bent on vengeance 2587 | -9/Mines | Learned Materials non-interactive machine intel 2637 | -9/Mines | Discovered new exit (range 5) 2669 | -9/Mines | Deemed a non-threat by the Exiles lab entrance 2669 | -9/Mines | Discovered new exit (range 5) 2674 | -9/Mines | Entered Exiles 2674 | -9/Exiles | Found Exiles lab destroyed 2720 | -9/Exiles | Discovered new exit (range 14) 3215 | -9/Exiles | Discovered new exit (range 12) 3541 | -9/Exiles | Entered Mines 3721 | -8/Mines | Self-destructed Last Messages --------------- K-01 Serf collects debris. Acquired 6 matter. U-05 Engineer builds a Wall. K-01 Serf collects debris. R-06 Scavenger collects Adv. Heat Sink. U-05 Engineer lays Concrete. U-05 Engineer builds a Wall. R-06 Scavenger collects Aluminum Leg. G-47 Trooper destroyed. Switching to secondary target: G-47 Trooper. Shotgun destroyed. R-06 Scavenger collects Particle Gun. 64OAVPSDCCKQRIMSEE>#JQU%3DKLK8LS:Q R-06 Scavenger collects Imp. Heat Sink. ALERT: Construction progress impeded, dispatching reinforcements to local area. Overheating: Energy bleed (-15). Grenade Launcher destroyed. Particle Gun destroyed. Power failure, Lgt. Ion Engine shutdown. Map ----- +----------------------------------------------------+ | ??????????????????????# #?? | | ????????????????###???### ####??? | | ???????????????## ####### #?????? | | ???????????????# #?????? | | ???????????????# ### ## #?????? | | ???????????????## ### ## #?????? | | ???????????????## ## # #?????? | | ???????????????# ##????? | | ???????????????# """ #????? | | ???????????????## """ ##????? | | ????????????????## """ #?????? | | ?????????????????# ##?????? | | ????????????###### ####??????? | | ????????????# ##?????????? | | ????????????# ##### ##??????????? | | ????????????# #???# #???????????? | | ????????????# #???# #######?????? | | ???????????## ##??# #?????? | | ??????????## ##?####### #?????? | | ??????????# ##??????# #?????? | | ??????????# ##?????# #?????? | | ??????????# ###???# #?????? | | ??????????## ##### #?????? | | ???????????#### =##????? | | ??????????????## #### #????? | | ???????????????######?# @ #????? | | ??????????????????????# gg #???? | | ??????????????????????## ##??? | | ??????????????????????? * ###?? | | ????????????????????#### % # #?? | | ????????????????????# # #?? | | ??????????????####### %###?? | | ??????????# # #? | | ??????????# % #? | | ??????????# ######## # #? | | ????????????????????# ###? | | ????????????????????##### ??? | | ????????????????????????? ??? | | ?????????????????????????######?? | | ????????????????????????????????? | | ????????????????????????????????? | | ????????????????????????????????? | | ????????????????????????????????? | | ????????????????????????????????? | | ????????????????????????????????? | | ????????????????????????????????? | | ????????????????????????????????? | | | | | | | +----------------------------------------------------+ Best States ------------- Heat Dissipation 35 Energy Generation 14 Energy Capacity 250 Matter Stores 300 Matter Capacity 300 Sight Range 16 Robot Scan Range 14 Terrain Scan Density 10 Armor Coverage 150 Evasion (%) 55 Item Schematics ----------------- Flight Unit | -9/Materials | Scanalyzed Lgt. Nuclear Core | -9/Materials | Scanalyzed Grenade Launcher | -9/Materials | Hacked Robot Schematics ------------------ None Fabricated ------------ Nothing Alien Tech Used ----------------- None Achievements -------------- None Challenges ------------ None Game ------ Seed XenonDataExoskeleton Manual? 0 Play Time 00:31:07 Cumulative 6.2 hours Start 2022.04.01 @ 06:27:06 End 2022.04.01 @ 06:56:35 Sessions 1 Manual Loads 0 Difficulty Rogue Special Mode None Game No. 20 Rogue 20 Adventurer 0 Explorer 0 Win Type - Total 0 Types 0/0/0/0/0/0/0/0/0 Lore% 15 Gallery% 13 Achievement% 15 Wizard Run 0 Options --------- ASCII 0 Keyboard 0 Movement Mouse Keybinds 0 Fullscreen 2 Font 18/X11Bold Map View 76x50 Tactical HUD 0 Map Filters NONE Filters NONE Steam 1 RUN: dc947a9a-37e4-4a10-8c0f-0641849dc85a